Workbook

Sheet ALL MARKET
B2: EKSPOR PANEL KAYU INDONESIA HS 4412
B3: KE SEMUA NEGARA
B4: Sumber : BPS
C6: Weight (Kg) | D6: Volume (m3) * | E6: Value(USD) | F6: Average Price (USD/m3) | H6: Volume (m3) * | I6: Value (USD) | J6: USD/M3
B7: Jan'17 | C7: 145,945,998 | D7: 291,892 | E7: 136,243,227 | F7: =E7/D7 -> 466.76 | H7: 2017
B8: Feb'17 | C8: 129,724,250 | D8: 259,449 | E8: 124,108,697 | F8: 478.36
B9: Mar'17 | C9: 158,794,821 | D9: 317,590 | E9: 147,687,423 | F9: 465.03
B10: Apr'17 | C10: 134,390,003 | D10: 268,780 | E10: 125,815,540 | F10: 468.10
B11: May'17 | C11: 159,592,441 | D11: 319,185 | E11: 147,405,005 | F11: 461.82
B12: Jun'17 | C12: 114,993,090 | D12: 229,986 | E12: 107,797,051 | F12: 468.71
B13: Jul'17 | C13: 140,308,246 | D13: 280,616 | E13: 133,300,016 | F13: 475.03
B14: Aug'17 | C14: 159,564,897 | D14: 319,130 | E14: 151,269,676 | F14: 474.01
B15: Sep'17 | C15: 146,313,850 | D15: 292,628 | E15: 140,724,176 | F15: 480.90
B16: Oct'17 | C16: 155,898,096 | D16: 311,796 | E16: 151,800,412 | F16: 486.86
B17: Nov'17 | C17: 176,404,556 | D17: 352,809 | E17: 173,268,417 | F17: 491.11
B18: Dec'17 | C18: 157,111,043 | D18: 314,222 | E18: 156,584,785 | F18: 498.33 | H18: =SUM(D7:D18) -> 3,558,083 | I18: =SUM(E7:E18) -> 1,696,004,426 | J18: =I18/H18 -> 476.66
B19: Jan'18 | C19: 143,909,419 | D19: 287,819 | E19: 150,266,904 | F19: 522.09 | H19: 2018
B20: Feb'18 | C20: 150,596,930 | D20: 301,194 | E20: 156,498,350 | F20: 519.59
B21: Mar'18 | C21: 183,716,090 | D21: 367,432 | E21: 198,082,820 | F21: 539.10
B22: Apr'18 | C22: 156,257,156 | D22: 312,514 | E22: 173,934,292 | F22: 556.56
B23: May'18 | C23: 188,163,066 | D23: 376,326 | E23: 213,808,291 | F23: 568.15
B24: Jun'18 | C24: 104,682,855 | D24: 209,366 | E24: 118,581,268 | F24: 566.38
B25: Jul'18 | C25: 160,582,732 | D25: 321,165 | E25: 183,755,525 | F25: 572.15
B26: Aug'18 | C26: 162,644,667 | D26: 325,289 | E26: 184,697,448 | F26: 567.79
B27: Sep'18 | C27: 150,624,675 | D27: 301,249 | E27: 174,415,936 | F27: 578.98
B28: Oct'18 | C28: 163,037,563 | D28: 326,075 | E28: 185,353,643 | F28: 568.44
B29: Nov'18 | C29: 152,147,832 | D29: 304,296 | E29: 165,290,029 | F29: 543.19
B30: Dec'18 | C30: 141,145,518 | D30: 282,291 | E30: 154,376,628 | F30: 546.87 | H30: =SUM(D19:D30) -> 3,715,017 | I30: =SUM(E19:E30) -> 2,059,061,135 | J30: =I30/H30 -> 554.25
B31: Jan'19 | C31: 154,336,255 | D31: 308,673 | E31: 161,363,479 | F31: 522.77 | H31: 2019
B32: Feb'19 | C32: 127,522,703 | D32: 255,045 | E32: 131,795,977 | F32: 516.75
B33: Mar'19 | C33: 138,201,069 | D33: 276,402 | E33: 138,995,502 | F33: 502.87
B34: Apr'19 | C34: 144,405,670 | D34: 288,811 | E34: 141,299,637 | F34: 489.25
B35: May'19 | C35: 154,267,090 | D35: 308,534 | E35: 150,135,714 | F35: 486.61
B36: Jun'19 | C36: 109,015,150 | D36: 218,030 | E36: 103,749,993 | F36: 475.85
B37: Jul'19 | C37: 177,274,325 | D37: 354,549 | E37: 160,799,982 | F37: 453.53
B38: Aug'19 | C38: 140,281,421 | D38: 280,563 | E38: 132,752,457 | F38: 473.16
B39: Sep'19 | C39: 144,197,061 | D39: 288,394 | E39: 135,412,596 | F39: =E39/D39 -> 469.54
B40: Oct'19 | C40: 170,350,789 | D40: 340,702 | E40: 154,528,968 | F40: 453.56
B41: Nov'19 | C41: 153,905,058 | D41: 307,810 | E41: 136,768,264 | F41: 444.33
B42: Dec'19 | C42: 160,136,346 | D42: 320,273 | E42: 143,201,699 | F42: 447.12 | H42: =SUM(D31:D42) -> 3,547,786 | I42: =SUM(E31:E42) -> 1,690,804,269 | J42: =I42/H42 -> 476.58
B43: Jan'20 | C43: 148,630,710 | D43: 297,261 | E43: 136,769,632 | F43: 460.10 | H43: 2020
B44: Feb'20 | C44: 166,821,435 | D44: 333,643 | E44: 150,526,069 | F44: 451.16
B45: Mar'20 | C45: 175,443,423 | D45: 350,887 | E45: 160,880,594 | F45: 458.50
B46: Apr'20 | C46: 182,349,295 | D46: 364,699 | E46: 167,413,772 | F46: 459.05
B47: May'20 | C47: 123,623,241 | D47: 247,246 | E47: 113,822,405 | F47: 460.36
B48: Jun'20 | C48: 151,587,699 | D48: 303,175 | E48: 137,723,321 | F48: 454.27
B49: Jul'20 | C49: 157,847,189 | D49: 315,694 | E49: 143,397,989 | F49: 454.23
B50: Aug'20 | C50: 155,151,492 | D50: 310,303 | E50: 138,769,606 | F50: 447.21
B51: Sep'20 | C51: 146,164,713 | D51: 292,329 | E51: 132,850,926 | F51: 454.46
B52: Okt'20 | C52: 162,133,863 | D52: 324,268 | E52: 142,985,019 | F52: 440.95
B53: Nov'20 | C53: 172,640,789 | D53: 345,282 | E53: 159,049,268 | F53: 460.64
B54: Des'20 | C54: 176,548,337 | D54: 353,097 | E54: 161,289,972 | F54: 456.79 | H54: =SUM(D43:D54) -> 3,837,884 | I54: =SUM(E43:E54) -> 1,745,478,573 | J54: =I54/H54 -> 454.80
B55: Jan'21 | C55: 149,760,810 | D55: 299,522 | E55: 135,209,892 | F55: 451.42 | H55: Jan-Sep 2021
B56: Feb'21 | C56: 169,483,219 | D56: 338,966 | E56: 162,339,064 | F56: 478.92
B57: Mar'21 | C57: 178,554,021 | D57: 357,108 | E57: 173,010,374 | F57: 484.48
B58: Apr'21 | C58: 184,908,725 | D58: 369,817 | E58: 186,456,787 | F58: 504.19
B59: May'21 | C59: 173,740,798 | D59: 347,482 | E59: 185,852,136 | F59: 534.85
B60: Jun'21 | C60: 188,637,892 | D60: 377,276 | E60: 207,838,161 | F60: 550.89
B61: Jul'21 | C61: 182,797,435 | D61: 365,595 | E61: 209,636,923 | F61: 573.41
B62: Aug'21 | C62: 169,928,278 | D62: 339,857 | E62: 192,903,132 | F62: 567.60
B63: Sep'21 | C63: 176,472,077 | D63: 352,944 | E63: 212,683,067 | F63: 602.60 | H63: =SUM(D55:D63) -> 3,148,567 | I63: =SUM(E55:E63) -> 1,665,929,535 | J63: =I63/H63 -> 529.11
B65: Catatan : *) dikonversi dari Kg dengan asumsi rata-rata BJ 0,5
